Workbook

Sheet EAA
A1: INSTITUTO MUNICIPAL DE PLANEACIÓN DE IRAPUATO, GTO. Estado Analítico del Activo Del 1 de Enero al 31 de Diciembre de 2025 (Cifras en Pesos)
A2: Concepto | B2: Saldo Inicial | C2: Cargos del Periodo | D2: Abonos del Periodo | E2: Saldo Final | F2: Variación del Periodo
A3: ACTIVO | B3: =B4+B12 -> 13,710,484 | C3: =C4+C12 -> 180,999,825 | D3: 179,793,731 | E3: 14,916,578 | F3: 1,206,094
A4: Activo Circulante | B4: =SUM(B5:B11) -> 8,525,372 | C4: =SUM(C5:C11) -> 179,023,745 | D4: =SUM(D5:D11) -> 177,281,620 | E4: =SUM(E5:E11) -> 10,267,497 | F4: =SUM(F5:F11) -> 1,742,125
A5: Efectivo y Equivalentes | B5: 8,480,864 | C5: 37,999,494 | D5: 36,456,453 | E5: =B5+C5-D5 -> 10,023,905 | F5: =E5-B5 -> 1,543,041
A6: Derechos a Recibir Efectivo o Equivalentes | B6: 44,509 | C6: 140,825,717 | D6: 140,825,167 | E6: =B6+C6-D6 -> 45,059 | F6: 550
A7: Derechos a Recibir Bienes o Servicios | B7: 0 | C7: 198,534 | D7: 0 | E7: 198,534 | F7: 198,534
A8: Inventarios | B8: 0 | C8: 0 | D8: 0 | E8: 0 | F8: 0
A9: Almacenes | B9: 0 | C9: 0 | D9: 0 | E9: 0 | F9: 0
A10: Estimación por Pérdida o Deterioro de Activos Circulantes | B10: 0 | C10: 0 | D10: 0 | E10: 0 | F10: 0
A11: Otros Activos Circulantes | B11: 0 | C11: 0 | D11: 0 | E11: 0 | F11: 0
A12: Activo No Circulante | B12: =SUM(B13:B21) -> 5,185,112 | C12: =SUM(C13:C21) -> 1,976,080 | D12: =SUM(D13:D21) -> 2,512,111 | E12: =SUM(E13:E21) -> 4,649,081 | F12: =SUM(F13:F21) -> -536,031
A13: Inversiones Financieras a Largo Plazo | B13: 0 | C13: 0 | D13: 0 | E13: =B13+C13-D13 -> 0 | F13: =E13-B13 -> 0
A14: Derechos a Recibir Efectivo o Equivalentes a Largo Plazo | B14: 0 | C14: 0 | D14: 0 | E14: =B14+C14-D14 -> 0 | F14: 0
A15: Bienes Inmuebles, Infraestructura y Construcciones en Proceso | B15: 0 | C15: 0 | D15: 0 | E15: 0 | F15: 0
A16: Bienes Muebles | B16: 8,647,958 | C16: 1,903,092 | D16: 1,030,741 | E16: 9,520,308 | F16: 872,351
A17: Activos Intangibles | B17: 1,804,563 | C17: 72,988 | D17: 36,494 | E17: 1,841,057 | F17: 36,494
A18: Depreciación, Deterioro y Amortización Acumulada de Bienes | B18: -5,267,409 | C18: 0 | D18: 1,444,876 | E18: -6,712,285 | F18: -1,444,876
A19: Activos Diferidos | B19: 0 | C19: 0 | D19: 0 | E19: 0 | F19: 0
A20: Estimación por Pérdida o Deterioro de Activos no Circulantes | B20: 0 | C20: 0 | D20: 0 | E20: 0 | F20: 0
A21: Otros Activos no Circulantes | B21: 0 | C21: 0 | D21: 0 | E21: 0 | F21: 0
A23: Bajo protesta de decir verdad declaramos que los Estados Financieros y sus notas, son razonablemente correctos y son responsabilidad del emisor.
